bitfinex/quotes_ETHUSD_20250626
["timestamp","ask_amount","ask_price","bid_price","bid_amount"]
[1750909435381,0.8191,2486.6,2486.2,4.02220255]
[1750909435578,0.8191,2486.6,2486.4,4.0218748]
[1750909436482,0.8191,2486.6,2486.5,4.02171727]
[1750909436684,0.94471087,2486.6,2486.5,4.02171727]
[1750909437109,0.7656,2486.9,2486.6,4.02144323]
[1750909437309,0.32640322,2486.8,2486.6,4.02144323]
[1750909437615,0.12560322,2486.7,2486.6,4.02144323]
[1750909439731,0.12560322,2486.7,2486.5,4.02165651]
[1750909439910,0.12560322,2486.6,2486.5,4.02165651]
[1750909441914,0.12560322,2486.6,2486.4,4.02183744]
[1750909442119,0.12560322,2486.5,2486.4,4.02183744]
[1750909443601,0.94920322,2486.5,2486.2,4.22288622]
[1750909443819,0.12560322,2486.4,2486.2,0.2008]
[1750909444023,0.12560322,2486.3,2486.2,0.2008]
[1750909444317,1.08349579,2486.3,2486.0,4.02238292]
[1750909444536,1.08349579,2486.2,2486.0,4.02238292]
[1750909444697,1.08349579,2486.1,2486.0,4.02238292]
[1750909444900,1.08349579,2486.1,2485.9,4.02262622]
[1750909445103,0.12560322,2486.0,2485.9,4.02262622]
[1750909445406,0.2008,2486.3,2486.2,4.02220255]
[1750909445718,0.32641623,2486.3,2486.2,4.02220255]
[1750909445927,1.79,2486.5,2486.4,4.02187902]
[1750909446134,1.91560959,2486.5,2486.4,4.02187902]
[1750909446595,2.87324255,2486.5,2486.4,4.02187902]
[1750909446999,1.08331921,2486.5,2486.4,4.02187902]
[1750909448034,1.08331921,2486.5,2486.4,4.81467902]
[1750909448035,0.12560959,2486.5,2486.4,4.81467902]
[1750909448238,1.1587378,2486.8,2486.6,4.02141524]
[1750909448434,0.12560219,2486.7,2486.6,4.02141524]
[1750909449842,0.12560219,2486.7,2486.5,4.02165381]
[1750909450142,0.12560207,2486.6,2486.5,4.02170971]
[1750909451304,0.2008,2486.8,2486.7,4.02139381]
[1750909451505,1.15870755,2486.8,2486.6,4.02148723]
[1750909451717,0.2008,2486.8,2486.7,4.02139381]
[1750909451919,1.15879242,2486.8,2486.7,4.02139381]
[1750909452335,1.28439419,2486.8,2486.7,4.02139381]
[1750909453236,1.15879242,2486.8,2486.6,4.02149366]
[1750909453417,0.2008,2486.8,2486.7,4.02139381]
[1750909453617,1.15933749,2486.8,2486.7,4.02139381]
[1750909454805,1.28493918,2486.8,2486.6,4.0214957]
[1750909455141,1.08413918,2486.7,2486.6,4.02147304]
[1750909458545,1.08413918,2486.7,2486.3,4.02198287]
[1750909458707,0.2008,2486.5,2485.9,0.2008]
[1750909458904,1.28493918,2486.4,2485.9,4.22344555]
[1750909459107,1.08413918,2486.3,2486.1,4.02234687]
[1750909459338,0.12560169,2486.2,2486.1,4.02234687]
[1750909461243,0.12560169,2486.2,2486.1,4.22314687]
[1750909462939,0.12560169,2486.2,2486.1,4.02234687]
[1750909463333,0.12560169,2486.2,2486.0,4.02246313]
[1750909463536,0.12560169,2486.1,2486.0,4.02246313]
[1750909464746,0.12562518,2486.1,2486.0,4.02246313]
[1750909465735,0.2008,2486.3,2486.0,4.02246313]
[1750909465935,0.1256247,2486.2,2486.0,4.02246313]
[1750909466136,0.1256247,2486.1,2485.9,4.02262292]
[1750909466441,0.2008,2486.3,2486.0,4.02251283]
[1750909466649,0.12562685,2486.2,2486.1,4.02236434]
[1750909470550,0.2008,2486.3,2486.2,4.02220255]
[1750909470860,1.28476588,2486.3,2486.2,4.02220255]
[1750909471049,0.12562222,2486.3,2486.2,5.03950255]
[1750909471718,0.2008,2486.6,2486.5,4.02171727]
[1750909471934,1.28491198,2486.6,2486.5,4.02171727]
[1750909472958,1.08411198,2486.6,2486.5,4.02171727]
[1750909473128,1.08461188,2486.6,2486.5,4.02171727]
[1750909473926,0.12560794,2486.6,2486.5,4.02171727]
[1750909474527,0.12560794,2486.6,2486.2,6.692]
[1750909474824,1.8668525,2486.5,2486.2,4.02213893]
[1750909475037,0.32640794,2486.4,2486.2,4.02213893]
[1750909475246,0.32640794,2486.4,2486.0,5.00241732]
[1750909475247,0.12560794,2486.3,2486.1,4.02229715]
[1750909475555,0.2008,2486.4,2486.1,4.02229715]
[1750909475755,0.12561714,2486.3,2486.0,5.00232933]
[1750909475956,0.12561714,2486.2,2486.0,10.91522933]
[1750909476152,0.12561714,2486.1,2486.0,10.91522933]
[1750909476341,0.12562552,2486.1,2486.0,10.91522933]
[1750909476547,0.12562552,2486.1,2486.0,4.02242933]
[1750909478123,0.12562552,2486.1,2485.8,0.9799]
[1750909478328,0.12562999,2486.0,2485.8,4.02273103]
[1750909478565,0.2008,2486.1,2485.8,4.02273103]
[1750909478727,0.12563392,2486.0,2485.8,4.02273103]
[1750909478929,0.2008,2486.1,2485.8,4.02273103]
[1750909479238,0.125634,2486.0,2485.9,4.02268796]
[1750909479439,0.125634,2486.0,2485.8,4.02279642]
[1750909479671,0.2008,2486.1,2485.8,4.02279642]
[1750909479831,0.12563335,2486.0,2485.8,4.02279642]
[1750909480030,0.2008,2486.1,2485.8,4.02279642]
[1750909480340,0.12563345,2486.0,2485.8,4.02279642]
[1750909480542,0.2008,2486.1,2485.8,4.02279642]
[1750909480857,0.12563335,2486.0,2485.8,4.02279642]
[1750909481060,0.2008,2486.1,2485.9,4.02268796]
[1750909481232,0.12563408,2486.0,2485.9,4.02268796]
[1750909483254,1.08408888,2486.0,2485.8,4.22354945]
[1750909483452,0.12563408,2485.9,2485.8,4.22354945]
[1750909483856,0.12563408,2485.9,2485.8,10.71374945]
[1750909484666,0.2008,2486.1,2485.9,4.02266654]
[1750909484852,1.08411136,2486.0,2485.9,4.02266654]
[1750909485666,1.08411136,2486.0,2485.8,10.71378738]
[1750909485966,0.12563832,2485.9,2485.8,10.71378738]
[1750909487540,0.12563832,2485.9,2485.8,4.02278738]
[1750909491472,0.12563832,2485.9,2485.7,6.8918]
[1750909491673,0.12563832,2485.8,2485.7,10.91481162]
[1750909492088,0.12563832,2485.8,2485.7,4.22381162]
[1750909492273,0.12563832,2485.8,2484.9,9.652]
[1750909492274,0.12563832,2485.8,2485.0,4.84527206]
[1750909492577,0.2008,2485.6,2485.2,4.02372645]
[1750909492782,1.28459336,2485.5,2485.2,4.02372645]
[1750909492942,0.12563832,2485.4,2485.2,4.02372645]
[1750909493143,0.12563832,2485.3,2485.2,4.02372645]
[1750909494377,1.005,2485.5,2485.2,4.02372645]
[1750909494674,1.08255011,2485.4,2485.1,4.02396742]
[1750909494841,1.08255011,2485.3,2485.0,4.22487688]
[1750909495041,0.12566778,2485.2,2485.0,4.22487688]
[1750909495272,0.95632941,2485.4,2485.1,4.02398293]
[1750909495479,0.12567847,2485.3,2485.1,4.02398293]
[1750909495678,0.12567847,2485.2,2485.1,4.02398293]
[1750909497056,0.12567847,2485.2,2485.1,4.84258293]
[1750909497275,0.2008,2485.6,2485.4,4.0233584]
[1750909498681,0.2008,2485.6,2485.2,4.02380127]
[1750909498884,0.2008,2485.6,2485.1,6.8908]
[1750909498885,0.1256601,2485.5,2485.1,6.69]
[1750909499091,1.0992601,2485.4,2485.1,10.71391994]
[1750909499253,0.2008,2485.4,2485.3,4.02365911]
[1750909499460,0.2008,2485.4,2485.2,4.02376048]
[1750909499869,0.2008,2485.4,2485.1,10.71391604]
[1750909500398,0.12567158,2485.3,2485.0,0.2008]
[1750909500690,0.2008,2485.3,2485.0,4.02411438]
[1750909500892,0.2008,2485.3,2484.9,4.02423872]
[1750909501092,0.2008,2485.3,2485.0,4.02409924]
[1750909502010,0.2008,2485.3,2484.9,10.71424555]
[1750909502188,0.8199,2485.2,2484.7,2.36930379]
[1750909502361,0.2008,2485.1,2484.8,6.69]
[1750909502566,0.2008,2485.1,2485.0,4.02414486]
[1750909504791,0.8199,2485.6,2485.5,4.02333534]
[1750909504994,0.12566355,2485.6,2485.5,4.02333534]
[1750909505194,0.2008,2485.8,2485.7,4.02289471]
[1750909505365,0.32645334,2485.8,2485.7,4.02289471]
[1750909506074,0.32645326,2485.8,2485.7,4.02289471]
[1750909508798,0.32645326,2485.8,2485.7,4.02301162]
[1750909509302,0.12565326,2485.8,2485.7,4.02301162]
[1750909509613,1.776,2486.0,2485.7,4.79861162]
[1750909509797,0.12564175,2485.9,2485.7,4.02301162]
[1750909509962,0.2008,2486.1,2485.8,4.02284978]
[1750909510166,0.12564204,2486.0,2485.8,4.02284978]
[1750909510366,0.12564204,2485.9,2485.8,4.02284978]
[1750909510590,0.12564174,2485.9,2485.8,4.02284978]
[1750909511196,0.2008,2486.1,2486.0,4.02252614]
[1750909511497,0.12564093,2486.1,2486.0,4.02252614]
[1750909513196,1.59524457,2487.0,2486.0,4.02252614]
[1750909513396,1.84482328,2486.9,2486.6,4.02144793]
[1750909513597,0.1256101,2486.8,2486.7,4.02139381]
[1750909515172,0.7663,2486.9,2486.7,4.02139381]
[1750909515473,0.1255973,2486.8,2486.7,4.02139381]
[1750909515673,0.7663,2486.9,2486.7,4.02139381]
[1750909515874,0.12559875,2486.8,2486.7,4.02139381]
[1750909517277,0.7663,2486.9,2486.6,4.02155146]
[1750909517278,11.7397253,2487.1,2486.8,4.02122836]
[1750909517477,0.12559783,2487.0,2486.8,4.02122836]
[1750909517807,0.12559783,2486.9,2486.8,4.02122836]
[1750909518490,11.776,2487.2,2486.7,4.80588975]
[1750909518491,11.776,2487.2,2486.7,0.7845]
[1750909518677,0.12558821,2487.1,2487.0,4.02079792]
[1750909519503,0.12558821,2487.3,2487.0,4.02079792]
[1750909519672,1.73882401,2487.5,2487.0,4.02085128]
[1750909519673,0.12558821,2487.2,2487.0,4.02085128]
[1750909520000,11.73882401,2487.5,2487.0,4.02085128]
[1750909520204,1.47696386,2487.4,2487.0,4.02085128]
[1750909520404,0.12558146,2487.3,2487.0,4.02085128]
[1750909520580,0.95218371,2487.2,2486.9,4.02103039]
[1750909520786,0.8266,2487.2,2487.0,4.02087789]
[1750909521306,0.12558668,2487.3,2487.1,4.02074705]
[1750909521611,2.1697824,2487.4,2487.1,4.02074705]
[1750909521910,0.12558484,2487.3,2487.1,4.02074705]
[1750909522112,0.8184,2487.4,2487.0,4.02084016]
[1750909522276,0.2008,2487.1,2486.7,0.2008]
[1750909522811,0.2008,2487.1,2486.9,4.02093969]
[1750909523014,0.2008,2487.1,2487.0,4.02090872]
[1750909524417,0.8184,2487.4,2487.0,4.02090872]
[1750909524641,0.2008,2487.3,2487.2,4.02048133]
[1750909525394,2.5568,2487.6,2487.5,4.0201005]
[1750909525395,1.775,2487.6,2487.5,4.0201005]
[1750909525580,1.9758,2487.6,2487.5,4.0201005]
[1750909525795,0.2008,2487.6,2487.4,4.02019987]
[1750909526389,0.2008,2487.6,2487.5,4.0201005]
[1750909527116,0.2008,2487.6,2487.5,4.8302005]
[1750909527682,10.0,2487.9,2487.8,4.01961572]
[1750909528182,10.2008,2487.9,2487.8,4.01961572]
[1750909529004,0.2008,2487.9,2487.8,4.01961572]
[1750909529825,0.7835,2488.0,2487.9,4.01938884]
[1750909529826,0.2008,2488.0,2487.9,4.01938884]
[1750909533126,0.2008,2488.1,2488.0,4.01925231]
[1750909535228,0.2008,2488.1,2487.9,4.01938984]
[1750909535438,0.2008,2488.1,2488.0,4.0192926]
[1750909538318,0.2008,2488.1,2487.9,4.01939489]
[1750909538521,0.2008,2488.1,2488.0,4.0192926]
[1750909540218,0.2008,2488.1,2487.7,1.0283]
[1750909541461,0.2008,2488.1,2488.0,4.0192926]
[1750909545120,0.2008,2488.1,2487.8,4.01954627]
[1750909545354,0.2008,2488.1,2488.0,4.0192926]
[1750909550763,0.32632594,2488.1,2488.0,4.0192926]
[1750909551555,1.2739363,2488.1,2488.0,4.0192926]
[1750909558661,1.27394109,2488.1,2488.0,4.0192926]
[1750909561985,0.7861,2487.9,2487.4,4.02015626]
[1750909562128,0.7861,2487.6,2487.3,0.2008]
[1750909562330,0.7861,2487.6,2487.1,4.02073112]
[1750909562331,1.27394109,2487.5,2487.2,4.02053274]
[1750909562558,1.07314109,2487.4,2486.9,4.98453091]
[1750909562752,1.07314109,2487.3,2487.0,4.0207918]
[1750909563062,0.12553073,2487.2,2487.1,4.02070527]
[1750909563451,0.2008,2487.4,2487.3,4.02042375]
[1750909563653,0.32636252,2487.4,2487.3,4.02042375]
[1750909563836,1.2751197,2487.4,2487.3,4.02042375]
[1750909564035,0.32636252,2487.4,2487.3,4.02042375]
[1750909565467,0.32636737,2487.4,2487.3,4.02042375]
[1750909565838,0.32636737,2487.4,2487.2,4.02052081]
[1750909566044,0.2008,2487.4,2487.2,4.02052081]
[1750909567949,0.2008,2487.4,2487.3,4.02042375]
[1750909568678,0.2008,2487.4,2487.2,4.02052022]
[1750909570685,0.2008,2487.4,2486.6,1.767]
[1750909570686,0.8860748,2487.3,2486.5,4.02161915]
[1750909570843,0.7605,2487.1,2486.4,1.0175]
[1750909571186,0.2008,2486.9,2486.6,4.02149053]
[1750909571542,0.2008,2486.9,2486.7,4.0213474]
[1750909572679,0.2008,2486.9,2486.6,4.02151738]
[1750909572882,0.78,2486.8,2486.0,0.8179]
[1750909573171,0.78,2486.8,2486.0,4.02246743]
[1750909573172,0.2008,2486.4,2486.0,4.02246743]
[1750909573365,0.2008,2486.3,2486.0,4.02246743]
[1750909574172,0.2008,2486.3,2486.2,4.02220255]
[1750909574988,0.2008,2486.3,2486.1,4.02230897]
[1750909575473,0.2008,2486.3,2486.2,4.02220255]
[1750909575877,0.2008,2486.3,2486.1,4.02232796]
[1750909576464,0.78,2486.2,2486.1,4.02232796]
[1750909577375,0.2008,2486.3,2486.2,4.02220255]
[1750909585680,0.9592,2486.3,2485.9,0.2008]
[1750909585880,0.2008,2486.0,2485.8,4.02271145]
[1750909586084,0.2008,2486.0,2485.7,4.02294277]
[1750909586288,0.8302,2485.9,2485.7,4.02294277]
[1750909587586,0.2008,2486.0,2485.8,4.02284978]
[1750909588394,0.2008,2486.0,2485.7,4.02301162]
[1750909588596,0.2008,2486.0,2485.9,4.02268796]
[1750909588754,1.764,2486.3,2486.1,4.02224256]
[1750909588956,1.764,2486.4,2486.1,4.02224256]
[1750909589206,1.764,2486.4,2486.0,4.02247453]
[1750909589704,10.7953,2486.3,2485.5,0.8045]
[1750909589871,1.38157748,2486.2,2485.6,4.02316692]
[1750909590194,0.7953,2486.1,2485.3,4.82811842]
[1750909590351,0.12565051,2486.0,2485.1,1.02695675]
[1750909590555,0.94735051,2486.0,2485.4,4.02347711]
[1750909590752,1.3717,2485.8,2485.1,0.8259]
[1750909590974,0.32613505,2485.7,2485.2,4.02374835]
[1750909591582,0.8217,2485.6,2485.1,4.02392996]
[1750909592778,0.94737016,2485.6,2485.1,4.02392996]
[1750909592976,0.8217,2485.6,2484.8,0.8259]
[1750909593203,0.8217,2485.6,2485.2,4.02378901]
[1750909593498,0.8217,2485.6,2485.1,4.02391972]
[1750909593999,0.8217,2485.6,2485.0,4.02413475]
[1750909594597,1.99148351,2485.6,2484.9,4.02424183]
[1750909594796,0.12567849,2485.5,2484.9,4.02424183]
[1750909594996,1.99148351,2485.6,2484.9,4.02424183]
[1750909595196,0.7787,2485.4,2484.5,0.7618]
[1750909595400,0.7787,2485.2,2484.5,0.7618]
[1750909595700,1.09043793,2485.1,2484.6,4.02479272]
[1750909596071,1.09043793,2485.1,2484.7,4.02461664]
[1750909596273,1.09043793,2485.1,2484.7,4.02448892]
[1750909596472,0.7787,2485.2,2484.8,4.02439085]
[1750909596779,0.7787,2485.2,2484.6,4.02473233]
[1750909596990,0.12569154,2485.1,2484.6,4.02473233]
[1750909597171,0.7787,2485.2,2484.6,4.02473233]
[1750909597372,0.7787,2485.2,2484.5,0.7618]
[1750909597373,0.12569501,2485.1,2484.7,4.02459269]
[1750909597572,0.7787,2485.2,2484.7,4.02459269]
[1750909597805,0.12569593,2485.1,2484.7,4.02459269]
[1750909598006,2.12713417,2485.2,2484.7,4.02459269]
[1750909598301,0.12569319,2485.1,2484.8,4.02442821]
[1750909598513,2.12713417,2485.2,2484.8,4.02442821]
[1750909598709,0.2008,2485.0,2484.8,4.02442821]
[1750909600401,0.12569269,2484.9,2484.8,4.02442821]
[1750909601886,0.12569269,2484.9,2484.7,4.02450817]
[1750909602086,0.2008,2485.0,2484.7,4.02450817]
[1750909602292,0.12569431,2484.9,2484.7,4.02450817]
[1750909602498,0.2008,2485.0,2484.7,4.02450817]
[1750909602699,0.12569456,2484.9,2484.8,4.02446877]
[1750909606612,10.94552592,2485.3,2484.9,0.7972]
[1750909606816,1.27203397,2485.2,2484.7,0.998]
[1750909607013,0.12568115,2485.1,2484.7,0.998]
[1750909607213,0.12568115,2485.0,2484.7,0.998]
[1750909607514,0.2008,2485.2,2484.7,0.2008]
[1750909607830,0.7905,2485.0,2484.8,4.02444713]
[1750909608120,0.12569041,2484.9,2484.8,4.02444713]
[1750909608426,0.9913,2485.2,2484.9,4.02428978]
[1750909608590,1.07097172,2485.1,2484.9,4.02428978]
[1750909608790,0.9913,2485.2,2484.9,4.02428978]
[1750909608791,0.12568954,2485.0,2484.9,4.02428978]
[1750909609096,0.12568954,2485.0,2484.8,4.02432372]
[1750909609312,0.9913,2485.2,2484.9,4.02429091]
[1750909609493,0.12568584,2485.1,2484.9,4.02429091]
[1750909609693,0.12568584,2485.0,2484.9,4.02429091]
[1750909610404,0.12568584,2485.0,2484.7,4.22542236]
[1750909610405,0.12568584,2485.0,2484.8,4.02444554]
[1750909610600,0.9913,2485.2,2484.8,4.02444554]
[1750909610896,0.1256853,2485.1,2484.8,4.02444554]
[1750909611092,0.1256853,2485.0,2484.8,4.02444554]
[1750909611292,0.9913,2485.2,2484.8,4.02444554]
[1750909611493,0.1256853,2485.1,2484.7,4.22540144]
[1750909611694,0.1256853,2485.0,2484.7,4.22540144]
[1750909611895,0.1256853,2484.9,2484.7,4.22540144]
[1750909612091,0.9913,2485.2,2484.7,0.2008]
[1750909612317,1.0698119,2485.1,2484.7,0.2008]
[1750909612493,0.9913,2485.2,2484.7,0.2008]
[1750909612494,1.0698119,2485.0,2484.7,0.2008]
[1750909612696,0.12569533,2484.9,2484.7,0.2008]
[1750909612928,0.9913,2485.2,2484.7,4.22541127]
[1750909613129,1.06972998,2485.1,2484.7,4.22541127]
[1750909613427,1.06972998,2485.0,2484.7,4.22541127]
[1750909613629,0.12569408,2484.9,2484.7,4.22541127]
[1750909613925,0.9913,2485.2,2484.7,4.22541127]
[1750909614093,1.07000225,2485.1,2484.8,4.02445547]
[1750909614298,1.07000225,2485.0,2484.8,4.02445547]
[1750909614511,0.12569389,2484.9,2484.8,4.02445547]
[1750909616929,0.12569389,2484.9,2484.7,4.22536805]
[1750909617130,0.2008,2485.2,2484.8,4.02446782]
[1750909617298,1.07106178,2485.1,2484.8,4.02446877]
[1750909617505,0.1256905,2485.0,2484.8,4.02446877]
[1750909617832,0.1256905,2484.9,2484.8,4.02446877]
[1750909619004,0.1256905,2484.9,2484.8,4.82366877]
[1750909620137,0.2008,2485.6,2485.3,4.02356152]
[1750909620302,1.07311735,2485.5,2485.4,4.02349722]
[1750909621268,1.07200878,2485.5,2485.1,4.02384583]
[1750909621409,0.7762,2485.3,2484.7,0.7992]
[1750909621609,0.12566912,2485.2,2484.9,4.02421531]
[1750909621833,0.12566912,2485.1,2485.0,4.02414486]
[1750909622747,0.12566912,2485.1,2484.9,4.02425682]
[1750909622920,0.977,2485.3,2484.9,4.02425682]
[1750909623123,0.12568065,2485.2,2484.9,4.02425682]
[1750909623324,0.12568065,2485.1,2484.9,4.02425682]
[1750909623517,0.977,2485.3,2485.0,4.02412497]
[1750909623729,0.12567784,2485.2,2485.1,4.02398293]
[1750909623911,0.12567784,2485.2,2485.1,4.85138293]
[1750909624237,1.14722766,2485.6,2485.4,4.02349722]
[1750909624542,0.12566356,2485.5,2485.4,4.02349722]
[1750909627428,0.2008,2485.6,2485.5,4.02333534]
[1750909627740,0.32645722,2485.6,2485.5,4.02333534]
[1750909627918,0.12565722,2485.6,2485.5,4.02333534]
[1750909629141,0.12565511,2485.6,2485.5,4.02333534]
[1750909629966,0.12565582,2485.6,2485.5,4.02333534]
[1750909630461,0.2008,2485.8,2485.5,4.02333534]
[1750909630648,0.12565633,2485.7,2485.5,4.02333534]
[1750909630958,0.2008,2485.8,2485.5,4.02333534]
[1750909631130,0.12565574,2485.7,2485.5,4.02333534]
[1750909631327,0.2008,2485.8,2485.5,4.02333534]
[1750909631651,0.12565555,2485.7,2485.4,4.02343082]
[1750909631851,0.2008,2485.8,2485.4,4.02343082]
[1750909632161,0.12565618,2485.7,2485.4,4.02343082]
[1750909632364,0.2008,2485.8,2485.5,4.02330346]
[1750909632655,0.12565562,2485.7,2485.5,4.02330346]
[1750909632864,0.2008,2485.8,2485.5,4.02330346]
[1750909633063,0.12565568,2485.7,2485.5,4.02330346]
[1750909633360,0.2008,2485.8,2485.5,4.02330346]
[1750909633574,0.12565575,2485.7,2485.5,4.02330346]
[1750909633730,0.2008,2485.8,2485.5,4.02330346]
[1750909633930,0.12565584,2485.7,2485.5,4.02330346]
[1750909634131,0.2008,2485.8,2485.5,4.02330346]
[1750909634362,0.1256559,2485.7,2485.5,4.02330346]
[1750909634570,0.2008,2485.8,2485.5,4.02330346]
[1750909634733,0.12565546,2485.7,2485.5,4.02330346]
[1750909634934,0.2008,2485.8,2485.5,4.02330346]
[1750909635252,0.12565643,2485.7,2485.5,4.02330346]
[1750909635464,0.12565913,2485.6,2485.4,4.02344106]
[1750909635657,0.2008,2485.8,2485.4,4.02344106]
[1750909635831,0.12565912,2485.7,2485.4,4.02344106]
[1750909636031,0.12565912,2485.6,2485.4,4.02344106]
[1750909636231,0.2008,2485.8,2485.5,4.02332848]
[1750909636466,0.1256562,2485.7,2485.5,4.02332848]
[1750909636765,0.2008,2485.8,2485.5,4.02332848]
[1750909636958,0.12565443,2485.7,2485.6,4.02315078]
[1750909637131,0.2008,2485.8,2485.5,4.02326407]
[1750909637741,0.2008,2485.8,2485.3,0.9834]
[1750909637974,0.12566089,2485.7,2485.4,4.02349722]
[1750909638167,0.12566089,2485.6,2485.5,4.02333359]
[1750909638361,0.2008,2485.8,2485.5,4.02333359]
[1750909638565,0.12565561,2485.7,2485.5,4.02333359]
[1750909638767,0.12565561,2485.6,2485.5,4.02333359]
[1750909638972,0.2008,2485.8,2485.5,4.02333359]
[1750909639181,0.12565429,2485.7,2485.5,4.02333359]
[1750909639388,0.1256548,2485.6,2485.4,4.02342837]
[1750909639680,1.27234159,2485.5,2485.1,4.02394119]
[1750909639988,0.12565707,2485.4,2485.1,4.02394119]
[1750909640170,0.12565707,2485.3,2485.1,4.02394119]
[1750909640347,0.2008,2485.5,2485.0,4.22488073]
[1750909640549,0.12567549,2485.4,2485.0,4.22488073]
[1750909640770,0.12567549,2485.3,2485.0,4.22488073]
[1750909640949,0.12567549,2485.2,2485.0,4.22488073]
[1750909641280,0.94600865,2485.4,2484.9,0.772]
[1750909641281,0.7612,2485.4,2484.9,0.772]
[1750909641480,0.12567859,2485.3,2485.1,4.02398293]
[1750909641650,0.2008,2485.4,2485.1,4.02398293]
[1750909641850,0.12567105,2485.3,2485.1,4.02398293]
[1750909642051,0.2008,2485.4,2485.1,4.02398293]
[1750909642384,0.12567092,2485.3,2485.1,4.02398293]
[1750909642581,0.2008,2485.4,2485.2,4.0237851]
[1750909642804,0.12567096,2485.3,2485.1,4.02391619]
[1750909643099,0.2008,2485.4,2485.1,4.02391619]
[1750909643396,0.12567058,2485.3,2485.1,4.02391619]
[1750909643685,0.2008,2485.4,2485.1,4.02391619]
[1750909643892,0.12567097,2485.3,2485.2,4.02382102]
[1750909644100,1.14801489,2485.7,2485.4,0.8279]
[1750909644257,1.56611792,2486.2,2485.8,4.02278119]
[1750909644258,1.75309651,2486.1,2485.8,4.02278119]
[1750909644459,1.27393782,2486.0,2485.9,4.02268796]
[1750909644780,1.07313782,2486.0,2485.9,4.02268796]
[1750909645088,0.12564131,2486.0,2485.9,4.02268796]
[1750909645774,10.4546,2486.5,2485.9,4.02268796]
[1750909645775,0.2008,2486.2,2486.1,4.02233395]
[1750909646101,0.32642709,2486.2,2486.1,4.02233395]
[1750909649207,0.12562709,2486.2,2486.1,4.02233395]
[1750909651208,10.2008,2486.4,2486.3,4.02204078]
[1750909651509,10.32642149,2486.4,2486.3,4.02204078]
[1750909651685,0.2008,2486.4,2486.3,4.02204078]
[1750909652275,1.76,2486.5,2486.3,4.02197451]
[1750909652476,1.76,2486.5,2486.1,4.02223263]
[1750909652680,0.2008,2486.3,2486.1,4.02223263]
[1750909653989,0.2008,2486.3,2486.2,4.02220255]
[1750909654189,0.2008,2486.3,2486.1,4.02236434]
[1750909654411,0.2008,2486.3,2486.2,4.02220255]
[1750909655913,0.2008,2486.3,2486.1,4.02232758]
[1750909655914,0.9911,2486.3,2486.1,4.02232758]
[1750909656140,1.3403,2486.2,2485.0,1.755]
[1750909656294,0.2008,2485.9,2485.6,4.02307198]
[1750909656682,0.2008,2485.9,2485.7,4.02285437]
[1750909657410,0.2008,2485.9,2485.6,4.02312461]
[1750909657617,1.73529181,2486.1,2485.5,4.02329794]
[1750909657824,0.2008,2485.8,2485.5,4.02329794]
[1750909658894,0.2008,2485.8,2484.8,10.0]
[1750909658895,1.89676304,2485.7,2484.9,0.8006]
[1750909659087,1.07066304,2485.6,2484.9,0.8006]
[1750909659287,0.12567123,2485.5,2485.3,4.02356274]
[1750909659487,0.12567123,2485.4,2485.2,4.02378677]
[1750909659688,1.31016811,2485.6,2485.2,4.02378677]
[1750909659887,0.12567331,2485.5,2485.2,4.02378677]
[1750909660090,0.12567331,2485.4,2485.2,4.02378677]
[1750909660321,1.31016811,2485.6,2485.2,4.02378677]
[1750909660515,0.12567291,2485.5,2485.3,4.02364483]
[1750909660823,0.8261,2485.7,2485.2,4.02371187]
[1750909660824,10.8261,2485.7,2485.2,4.02371187]
[1750909660989,0.12566912,2485.6,2485.2,4.02371187]
[1750909661186,12.17870918,2485.7,2485.2,4.02371187]
[1750909661521,0.12567113,2485.6,2485.2,4.02371187]
[1750909661694,0.12567113,2485.5,2485.2,4.02371187]
[1750909661895,12.17870918,2485.7,2485.2,4.02371187]
[1750909662094,1.51904269,2485.6,2485.3,4.02363263]
[1750909662294,0.12567177,2485.5,2485.2,4.0237541]
[1750909662496,1.39337092,2485.6,2485.2,4.0237541]
[1750909662697,0.12567126,2485.5,2485.1,4.02394162]
[1750909662912,1.39337092,2485.6,2484.9,0.8006]
[1750909663199,0.12567155,2485.5,2485.1,4.02388894]
[1750909663409,1.39337092,2485.6,2485.1,4.02388894]
[1750909663611,0.8228,2485.4,2485.0,4.02411664]
[1750909663810,0.1256711,2485.3,2485.1,4.02395705]
[1750909664128,0.8228,2485.4,2485.2,4.0237469]
[1750909664297,0.12567889,2485.3,2485.2,4.0237469]
[1750909664499,0.8228,2485.4,2485.2,4.0237469]
[1750909664831,0.8228,2485.4,2485.3,4.02365911]
[1750909665005,0.94847345,2485.4,2485.2,4.0238111]
[1750909665329,0.8228,2485.4,2485.2,4.0238111]
[1750909666507,0.8228,2485.4,2485.2,4.023706]
[1750909667111,0.8228,2485.4,2485.1,4.0239473]
[1750909668349,0.7604,2485.7,2485.1,0.7601]
[1750909668549,0.7604,2485.7,2485.5,4.02323904]
[1750909668847,0.9612,2485.7,2485.6,4.02317347]
[1750909669019,1.08685728,2485.7,2485.6,4.02317347]
[1750909669215,1.08685728,2485.7,2485.5,4.02327895]
[1750909669523,0.9612,2485.7,2485.5,4.02327895]
[1750909670738,0.9612,2485.7,2485.4,4.02344555]
[1750909671945,0.9612,2485.7,2485.5,4.02331928]
[1750909672340,0.2008,2485.7,2485.6,4.02317347]
[1750909672512,0.3264567,2485.7,2485.6,4.02317347]
[1750909673521,0.2008,2485.7,2485.6,4.02317347]
[1750909675209,0.7698,2485.9,2485.8,4.02284978]
[1750909675444,0.12564723,2485.9,2485.8,4.02284978]
[1750909675822,0.2008,2485.8,2485.7,4.02295292]
[1750909678310,0.2008,2485.8,2485.6,4.0231316]
[1750909679628,0.2008,2485.8,2485.5,4.0232894]
[1750909679938,0.2008,2485.5,2485.0,7.4119]
[1750909680108,0.2008,2485.5,2485.0,7.6127]
[1750909680309,0.2008,2485.5,2485.4,4.02349722]
[1750909681837,0.2008,2485.5,2485.0,0.9657]
[1750909682014,0.88507506,2485.4,2485.0,4.02403449]
[1750909682216,0.2008,2485.2,2485.0,4.02403449]
[1750909682412,0.2008,2485.2,2484.9,4.02423877]
[1750909682616,0.2008,2485.2,2484.8,4.78924434]
[1750909682617,0.2008,2485.2,2485.0,4.02414061]
[1750909686554,0.2008,2485.2,2485.1,4.02398293]
[1750909687760,0.32647103,2485.2,2485.1,4.02398293]
[1750909688550,0.32647103,2485.2,2485.0,4.02409294]
[1750909688746,0.32647103,2485.2,2484.8,0.7649]
[1750909688747,0.2008,2485.2,2484.8,0.7649]
[1750909688929,0.1256816,2485.1,2484.8,0.7649]
[1750909689260,0.12568463,2485.0,2484.7,4.02451596]
[1750909689467,0.2008,2484.8,2484.7,4.02463074]
[1750909692230,0.94614785,2485.2,2484.9,4.02418714]
[1750909692434,0.2008,2485.0,2484.9,4.02418714]